fUSD/lending_fUSD_20241225
["ID","MTS","AMOUNT","RATE_DAILY","PERIOD"]
[346563753,1735090234468,-171.09314483,0.00010027,2]
[346563754,1735090234483,-295.02,0.00010137,2]
[346563755,1735090234498,-250.0,0.00011853,2]
[346563756,1735090234513,-154.62,0.0001192,2]
[346563757,1735090234528,-295.19,0.00011952,2]
[346563758,1735090234543,-400.0,0.00011999,2]
[346563759,1735090234559,-250.0,0.00012013,2]
[346563760,1735090234574,-1000.0,0.00012015,2]
[346563761,1735090234591,-250.0,0.00012085,2]
[346563762,1735090234606,-1059.0,0.00012102,2]
[346563763,1735090234622,-920.41,0.00012291,2]
[346563764,1735090234636,-400.634,0.0001235,2]
[346563765,1735090234651,-167.35,0.00012359,2]
[346563766,1735090234667,-300.0,0.00012799,2]
[346563767,1735090234682,-1000.0,0.000128,2]
[346563768,1735090234697,-1000.0,0.000128,3]
[346563769,1735090234712,-1000.0,0.000128,4]
[346563770,1735090234727,-300.0,0.000128,3]
[346563771,1735090234742,-336.0816504,0.000128,2]
[346563772,1735090234757,-187.31120327,0.0001287,2]
[346563775,1735090234773,-300.0,0.000129,2]
[346563777,1735090234787,-3809.85205826,0.000129,2]
[346563779,1735090234801,-3457.39,0.00012969,2]
[346563780,1735090234816,-3200.06,0.00012969,2]
[346563781,1735090234831,-1260.6,0.00012969,2]
[346563782,1735090234846,-8423.32,0.00012969,2]
[346563783,1735090234861,-2432.14,0.00012969,2]
[346563784,1735090234875,-5285.68,0.00012969,2]
[346563785,1735090234890,-514.92,0.00012969,2]
[346563787,1735090234905,-1763.14,0.00012969,2]
[346563789,1735090234920,-4758.72,0.00012969,2]
[346563792,1735090234934,-27182.41,0.00012969,2]
[346563794,1735090234948,-5592.27,0.00012969,2]
[346563795,1735090234963,-5738.23,0.00012969,2]
[346563796,1735090234978,-14488.88,0.00012969,2]
[346563797,1735090234993,-8056.03,0.00012969,2]
[346563798,1735090235009,-3579.26,0.00012969,2]
[346563799,1735090235024,-11115.49,0.00012969,2]
[346563800,1735090235039,-11244.24,0.00012969,2]
[346563801,1735090235054,-847.28,0.00012969,2]
[346563802,1735090235070,-888.92,0.00012969,2]
[346563803,1735090235086,-1515.96,0.00012969,2]
[346563804,1735090235100,-699.47,0.00012969,2]
[346563805,1735090235115,-4985.62,0.00012969,2]
[346563806,1735090235131,-500.0,0.00012969,2]
[346563807,1735090235146,-500.0,0.00012969,2]
[346563808,1735090235162,-943.22,0.00012969,2]
[346563809,1735090235177,-500.0,0.00012969,2]
[346563810,1735090235192,-500.0,0.00012969,2]
[346563811,1735090235207,-2038.59,0.00012969,2]
[346563812,1735090235222,-514.88,0.00012969,2]
[346563813,1735090235237,-55856.30560201,0.0001297,2]
[346563814,1735090235305,-89681.92782238,0.0001297,2]
[346563815,1735090235317,-299.99,0.0001297,2]
[346563816,1735090235329,-572.22684982,0.0001297,2]
[346563817,1735090235632,-931.11289744,0.0001297,2]
[346563818,1735090235676,-2059.90069911,0.0001297,2]
[346563819,1735090235720,-9231.55997168,0.0001297,2]
[346563820,1735090235732,-385.90652593,0.0001297,2]
[346563828,1735090238062,-500.0,0.00012969,2]
[346563829,1735090238072,-1789.24,0.00012969,2]
[346563830,1735090238082,-42175.09231153,0.0001297,2]
[346563831,1735090238094,-583.09111344,0.0001297,2]
[346563832,1735090238193,-496.99999,0.0001297,2]
[346563833,1735090238205,-6231.31666201,0.0001297,2]
[346563834,1735090238319,-1023.74679934,0.0001297,2]
[346563835,1735090238330,-8066.44137906,0.0001297,2]
[346563836,1735090238342,-76748.49833998,0.0001297,2]
[346563837,1735090238352,-11039.5035088,0.0001297,2]
[346563838,1735090238362,-1245.04,0.0001297,2]
[346563839,1735090238372,-503.60400697,0.0001297,2]
[346563840,1735090238381,-2882.23,0.0001297,2]
[346563841,1735090238391,-500.0,0.0001297,2]
[346563842,1735090238400,-3074.54,0.0001297,2]
[346563843,1735090238410,-500.0,0.0001297,2]
[346563844,1735090238419,-500.0,0.0001297,2]
[346563845,1735090238428,-403.76240817,0.0001297,2]
[346563846,1735090238437,-441.11269871,0.0001297,2]
[346563847,1735090238447,-442.1032625,0.0001297,2]
[346563848,1735090238457,-500.0,0.0001297,2]
[346563849,1735090238467,-500.0,0.0001297,2]
[346563850,1735090238476,-500.0,0.0001297,2]
[346563851,1735090238485,-917.85,0.0001297,2]
[346563852,1735090238494,-500.0,0.0001297,2]
[346563853,1735090238504,-500.0,0.0001297,2]
[346563854,1735090238513,-528.31624917,0.0001297,2]
[346563855,1735090238522,-2165.46,0.0001297,2]
[346563856,1735090238531,-782.16,0.0001297,2]
[346563857,1735090238541,-500.0,0.0001297,2]
[346563858,1735090238551,-711.97,0.0001297,2]
[346563859,1735090238560,-1199.08,0.0001297,2]
[346563860,1735090238571,-1317.37,0.0001297,2]
[346563861,1735090238580,-500.0,0.0001297,2]
[346563862,1735090238590,-500.0,0.0001297,2]
[346563863,1735090238600,-500.0,0.0001297,2]
[346563864,1735090238609,-3070.44,0.0001297,2]
[346563865,1735090238619,-312.93841739,0.0001297,2]
[346563867,1735090238629,-500.0,0.0001297,2]
[346563869,1735090238638,-500.0,0.0001297,2]
[346563871,1735090238647,-1995.65,0.0001297,2]
[346563872,1735090238656,-500.0,0.0001297,2]
[346563875,1735090238669,-1254.04,0.0001297,2]
[346563877,1735090238679,-2263.06,0.0001297,2]
[346563879,1735090238688,-500.0,0.0001297,2]
[346563881,1735090238698,-500.0,0.0001297,2]
[346563883,1735090238707,-500.0,0.0001297,2]
[346563885,1735090238716,-1590.6,0.0001297,2]
[346563887,1735090238725,-500.0,0.0001297,2]
[346563889,1735090238734,-500.0,0.0001297,2]
[346563891,1735090238743,-500.0,0.0001297,2]
[346563893,1735090238752,-500.0,0.0001297,2]
[346563895,1735090238762,-500.0,0.0001297,2]
[346563897,1735090238771,-933.81,0.0001297,2]
[346563899,1735090238781,-500.0,0.0001297,2]
[346563901,1735090238791,-502.38294858,0.0001297,2]
[346563903,1735090238800,-500.0,0.0001297,2]
[346563905,1735090238810,-1297.54,0.0001297,2]
[346563907,1735090238820,-500.0,0.0001297,2]
[346563909,1735090238829,-500.0,0.0001297,2]
[346563911,1735090238839,-2120.58,0.0001297,2]
[346563913,1735090238847,-500.0,0.0001297,2]
[346563915,1735090238857,-500.08957509,0.0001297,2]
[346563917,1735090238866,-500.0,0.0001297,2]
[346563918,1735090238875,-500.0,0.0001297,2]
[346563919,1735090238884,-2003.53,0.0001297,2]
[346563920,1735090238894,-500.0,0.0001297,2]
[346563921,1735090238903,-500.0,0.0001297,2]
[346563922,1735090238912,-500.0,0.0001297,2]
[346563923,1735090238926,-500.0,0.0001297,2]
[346563924,1735090238935,-984.72,0.0001297,2]
[346563925,1735090238944,-500.0,0.0001297,2]
[346563926,1735090238954,-500.0,0.0001297,2]
[346563927,1735090238964,-864.76,0.0001297,2]
[346563928,1735090238973,-500.0,0.0001297,2]
[346563929,1735090238982,-767.34,0.0001297,2]
[346563930,1735090238992,-500.0,0.0001297,2]
[346563931,1735090239001,-694.95,0.0001297,2]
[346563932,1735090239010,-500.0,0.0001297,2]
[346563933,1735090239020,-500.0,0.0001297,2]
[346563934,1735090239029,-500.0,0.0001297,2]
[346563935,1735090239038,-1987.12,0.0001297,2]
[346563936,1735090239047,-500.0,0.0001297,2]
[346563937,1735090239057,-500.0,0.0001297,2]
[346563938,1735090239066,-500.49799565,0.0001297,2]
[346563939,1735090239076,-500.0,0.0001297,2]
[346563940,1735090239086,-264.98736225,0.0001297,2]
[346563941,1735090239095,-500.0,0.0001297,2]
[346563942,1735090239105,-2379.42,0.0001297,2]
[346563943,1735090239115,-500.0,0.0001297,2]
[346563944,1735090239126,-500.0,0.0001297,2]
[346563945,1735090239135,-500.0,0.0001297,2]
[346563946,1735090239146,-500.0,0.0001297,2]
[346563947,1735090239155,-705.41,0.0001297,2]
[346563948,1735090239166,-500.0,0.0001297,2]
[346563949,1735090239177,-500.0,0.0001297,2]
[346563950,1735090239187,-500.0,0.0001297,2]
[346563951,1735090239196,-500.0,0.0001297,2]
[346563952,1735090239206,-500.0,0.0001297,2]
[346563953,1735090239216,-500.0,0.0001297,2]
[346563954,1735090239226,-500.0,0.0001297,2]
[346563955,1735090239236,-2024.22,0.0001297,2]
[346563956,1735090239247,-713.87,0.0001297,2]
[346563957,1735090239257,-500.0,0.0001297,2]
[346563958,1735090239267,-500.0,0.0001297,2]
[346563959,1735090239278,-593.89228314,0.0001297,2]
[346563960,1735090239288,-500.0,0.0001297,2]
[346563961,1735090239297,-500.0,0.0001297,2]
[346563962,1735090239307,-500.0,0.0001297,2]
[346563963,1735090239316,-500.0,0.0001297,2]
[346563964,1735090239326,-500.0,0.0001297,2]
[346563965,1735090239335,-1300.5,0.0001297,2]
[346563966,1735090239345,-500.0,0.0001297,2]
[346563967,1735090239354,-612.7,0.0001297,2]
[346563968,1735090239364,-500.0,0.0001297,2]
[346563969,1735090239373,-2451.25,0.0001297,2]
[346563970,1735090239382,-500.0,0.0001297,2]
[346563971,1735090239394,-500.0,0.0001297,2]
[346563972,1735090239403,-1163.96,0.0001297,2]
[346563973,1735090239413,-500.0,0.0001297,2]
[346563974,1735090239422,-500.0,0.0001297,2]
[346563975,1735090239431,-3332.95,0.0001297,2]
[346563976,1735090239441,-500.0,0.0001297,2]
[346563977,1735090239451,-1025.74,0.0001297,2]
[346563978,1735090239460,-1772.32,0.0001297,2]
[346563979,1735090239470,-500.0,0.0001297,2]
[346563980,1735090239480,-500.0,0.0001297,2]
[346563981,1735090239490,-784.29,0.0001297,2]
[346563982,1735090239499,-1734.04,0.0001297,2]
[346563983,1735090239509,-166.13381946,0.0001297,2]
[346563984,1735090239519,-500.0,0.0001297,2]
[346563985,1735090239529,-600.13,0.0001297,2]
[346563986,1735090239538,-500.0,0.0001297,2]
[346563987,1735090239547,-916.17,0.0001297,2]
[346563988,1735090239557,-2742.76,0.0001297,2]
[346563989,1735090239568,-500.0,0.0001297,2]
[346563990,1735090239578,-500.0,0.0001297,2]
[346563991,1735090239587,-500.0,0.0001297,2]
[346563992,1735090239597,-1269.39,0.0001297,2]
[346563993,1735090239608,-500.0,0.0001297,2]
[346563994,1735090239618,-500.0,0.0001297,2]
[346563995,1735090239627,-507.49193855,0.0001297,2]
[346563996,1735090239636,-500.0,0.0001297,2]
[346563997,1735090239646,-3681.64,0.0001297,2]
[346563998,1735090239847,-199.76809108,0.0001297,2]
[346563999,1735090239873,-1916.41,0.0001297,2]
[346564000,1735090239884,-1832.65,0.0001297,2]
[346564002,1735090239893,-500.0,0.0001297,2]
[346564004,1735090239902,-500.0,0.0001297,2]
[346564006,1735090239916,-769.44,0.0001297,2]
[346564007,1735090239930,-849.78,0.0001297,2]
[346564008,1735090239939,-500.0,0.0001297,2]
[346564009,1735090239949,-155.426395,0.0001297,2]
[346564010,1735090239958,-156.404269,0.0001297,2]
[346564011,1735090239968,-3097.501374,0.0001297,2]
[346564012,1735090239977,-2234.28,0.0001297,2]
[346564013,1735090239986,-18786.75,0.0001297,2]
[346564014,1735090239995,-2309.51751489,0.0001297,2]
[346564015,1735090241284,-1220.28248511,0.0001297,2]
[346564016,1735090241294,-3156.263125,0.0001297,2]
[346564017,1735090241303,-568.19818194,0.0001297,2]
[346564018,1735090241312,-500.0,0.0001297,2]
[346564019,1735090241322,-2179.12,0.0001297,2]
[346564020,1735090241332,-3874.14,0.0001297,2]
[346564021,1735090241341,-500.0,0.0001297,2]
[346564022,1735090241351,-1102.17,0.0001297,2]
[346564023,1735090241361,-911.7,0.0001297,2]
[346564024,1735090241371,-500.0,0.0001297,2]
[346564025,1735090241380,-500.0,0.0001297,2]
[346564026,1735090241390,-1590.68,0.0001297,2]
[346564027,1735090241400,-857.8,0.0001297,2]
[346564028,1735090241410,-500.0,0.0001297,2]
[346564029,1735090241419,-167.83041798,0.0001297,2]
[346564030,1735090241428,-3252.26,0.0001297,2]
[346564031,1735090241438,-500.0,0.0001297,2]
[346564032,1735090241448,-3699.65,0.0001297,2]
[346564033,1735090241457,-500.0,0.0001297,2]
[346564034,1735090241467,-659.95,0.0001297,2]
[346564035,1735090241477,-5164.15,0.0001297,2]
[346564036,1735090241486,-2612.54,0.0001297,2]
[346564037,1735090241495,-2413.23,0.0001297,2]
[346564038,1735090241504,-500.0,0.0001297,2]
[346564039,1735090241513,-500.0,0.0001297,2]
[346564040,1735090241523,-9375.94,0.0001297,2]
[346564041,1735090241532,-2257.98,0.0001297,2]
[346564042,1735090241542,-5246.56,0.0001297,2]
[346564043,1735090241551,-503.4154577,0.0001297,2]
[346564044,1735090241561,-4689.65,0.0001297,2]
[346564045,1735090241571,-1666.43,0.0001297,2]
[346564046,1735090241581,-500.0,0.0001297,2]
[346564047,1735090241591,-4654.78,0.0001297,2]
[346564048,1735090241600,-563.71,0.0001297,2]
[346564049,1735090241609,-500.0,0.0001297,2]
[346564050,1735090241618,-835.92,0.0001297,2]
[346564051,1735090241627,-500.0,0.0001297,2]
[346564052,1735090241636,-509.12020284,0.0001297,2]
[346564053,1735090241645,-8557.07,0.0001297,2]
[346564054,1735090241654,-500.0,0.0001297,2]
[346564055,1735090241663,-500.0,0.0001297,2]
[346564056,1735090241671,-500.0,0.0001297,2]
[346564057,1735090241681,-500.0,0.0001297,2]
[346564058,1735090241690,-637.03,0.0001297,2]
[346564059,1735090241699,-28894.68,0.0001297,2]
[346564060,1735090241708,-1241.81,0.0001297,2]
[346564061,1735090241717,-2678.85,0.0001297,2]
[346564062,1735090241727,-505.47479646,0.0001297,2]
[346564063,1735090241736,-2025.56,0.0001297,2]
[346564064,1735090241745,-2639.55,0.0001297,2]
[346564065,1735090241754,-1838.52,0.0001297,2]
[346564066,1735090241764,-3697.43,0.0001297,2]
[346564067,1735090241773,-460.21654168,0.0001297,2]
[346564068,1735090241782,-1811.23,0.0001297,2]
[346564069,1735090241790,-1853.39,0.0001297,2]
[346564070,1735090241799,-19543.07924688,0.0001297,2]
[346564071,1735090242085,-3000.84839263,0.0001297,2]
[346564072,1735090242097,-442.4850004,0.0001297,2]
[346564073,1735090242452,-281.16874773,0.00012969,2]
[346564074,1735090242462,-9962.19736009,0.0001297,2]
[346564075,1735090242471,-1857.04729218,0.0001297,2]
[346564076,1735090242507,-865.96270782,0.0001297,2]
[346564077,1735090242517,-5974.8,0.0001297,2]
[346564078,1735090242527,-500.0,0.0001297,2]
[346564079,1735090242535,-2971.07,0.0001297,2]
[346564080,1735090242545,-2871.79723741,0.0001297,2]
[346564081,1735090242555,-500.0,0.0001297,2]
[346564118,1735090243122,-255.83276259,0.0001297,2]
[346564119,1735090243131,-322.52211286,0.0001297,2]
[346564120,1735090243140,-1492.21495098,0.0001297,2]
[346564121,1735090243151,-510.58504902,0.0001297,2]
[346564122,1735090243160,-1436.43156104,0.0001297,2]
[346564123,1735090243248,-4525.83843896,0.0001297,2]
[346564124,1735090243258,-288.0729744,0.0001297,2]
[346564125,1735090243268,-507.89218815,0.0001297,2]
[346564126,1735090243277,-1651.09,0.0001297,2]
[346564127,1735090243287,-4104.84,0.0001297,2]
[346564128,1735090243296,-500.0,0.0001297,2]
[346564129,1735090243305,-500.0,0.0001297,2]
[346564130,1735090243315,-10992.43,0.0001297,2]
[346564131,1735090243325,-500.0,0.0001297,2]
[346564132,1735090243334,-3080.16115695,0.0001297,2]
[346564133,1735090243346,-5443.82884305,0.0001297,2]
[346564134,1735090243356,-8523.99,0.0001297,2]
[346564135,1735090243365,-1880.73,0.0001297,2]
[346564136,1735090243374,-2792.01,0.0001297,2]
[346564137,1735090243383,-5590.0,0.0001297,2]
[346564138,1735090243393,-503.00779288,0.0001297,2]
[346564139,1735090243403,-1774.38,0.0001297,2]
[346564140,1735090243412,-6404.4503991,0.0001297,2]
[346564141,1735090243424,-1639.99991703,0.0001297,2]
[346564142,1735090243435,-433.3900625,0.0001297,2]
[346564143,1735090243473,-451.88977681,0.0001297,2]
[346564146,1735090243485,-62.92984456,0.0001297,2]
[346564148,1735090243494,-438.98379121,0.0001297,2]
[346564151,1735090246045,-2947.26,0.00012969,2]
[346564152,1735090246055,-775.0,0.00012969,2]
[346564153,1735090246064,-750.05,0.00012969,2]
[346564154,1735090246074,-1054.62,0.00012969,2]
[346564155,1735090246082,-4976.10099797,0.00012969,2]
[346564156,1735090246135,-622.15636844,0.00012969,2]
[346564157,1735090246146,-230.69263359,0.00012969,2]
[346564158,1735090246155,-50.30736641,0.0001297,2]
[346564159,1735090246167,-153.01263359,0.0001297,2]
[346564160,1735090246175,-438.47103912,0.0001297,2]
[346564161,1735090246267,-706.91377849,0.0001297,2]
[346564162,1735090246278,-318.30043986,0.0001297,2]
[346564163,1735090246290,-4231.81095132,0.0001297,2]
[346564164,1735090246299,-2795.76,0.0001297,2]
[346564165,1735090246308,-26330.65865256,0.0001297,2]
[346564166,1735090246321,-133.51134744,0.0001297,2]
[346564167,1735090246330,-499.76874466,0.0001297,2]
[346564168,1735090246393,-0.23125534,0.0001297,2]
[346564169,1735090246403,-4841.56601634,0.0001297,2]
[346564170,1735090246415,-2024.8765447,0.0001297,2]
[346564171,1735090246426,-3866.95395125,0.0001297,2]
[346564172,1735090361722,-1009.38,0.000128,5]
[346564173,1735090361803,-24850.0,0.00013,5]
[346564175,1735091016598,-6650.64729683,0.000145,25]
[346564176,1735091016698,-170489.97270317,0.0001499,10]
[346564191,1735091432411,-891.00546868,9.827e-05,2]
[346564192,1735091432423,-27.36453132,9.827e-05,2]
[346564193,1735091432432,-156.86,0.00010137,2]
[346564194,1735091432441,-201.53,0.00010197,2]
[346564195,1735091432451,-203.57,0.00010242,2]
[346564196,1735091432460,-202.01,0.00010324,2]
[346564197,1735091432470,-203.08,0.00010469,2]
[346564198,1735091432479,-203.73,0.00010725,2]
[346564199,1735091432488,-150.0,0.00011151,2]
[346564200,1735091432497,-200.78,0.00011184,2]
[346564201,1735091432506,-270.45,0.00011466,2]
[346564202,1735091432516,-250.0,0.00011475,2]
[346564203,1735091432525,-250.0,0.00011521,2]
[346564204,1735091432534,-26.32547788,0.00011541,2]
[346564205,1735091432545,-973.67452212,0.00011541,2]
[346564206,1735091432554,-154.23,0.00011642,2]
[346564207,1735091432564,-154.23,0.00011701,2]
[346564208,1735091432573,-861.27370044,0.00011793,2]
[346564209,1735091432584,-308.91629956,0.00011793,2]
[346564210,1735091432594,-508.98,0.00011837,2]
[346564211,1735091432604,-364.81461757,0.00011936,2]
[346564212,1735091432756,-531.65387139,0.00011936,2]
[346564213,1735091432770,-1236.30151104,0.00011936,2]
[346564214,1735091432780,-201.19,0.00012001,2]
[346564216,1735091432789,-202.3,0.00012001,2]
[346564218,1735091432799,-67.01429346,0.00012024,2]
[346564220,1735091432810,-101.54570654,0.00012024,2]
[346564223,1735091432820,-918.37,0.00012091,2]
[346564226,1735091432829,-440.64,0.00012137,2]
[346564228,1735091432838,-300.0,0.00012348,2]
[346564230,1735091432848,-397.626,0.0001235,2]
[346564232,1735091432857,-513.04170815,0.000128,2]
[346564234,1735091432866,-1674.7227955,0.00012867,2]
[346564236,1735091432879,-265.1553,0.00012867,2]
[346564238,1735091432888,-1267.6571,0.00012867,2]
[346564240,1735091432898,-6249.6252,0.00012868,2]
[346564242,1735091432907,-12012.7661,0.00012868,2]
[346564244,1735091432916,-391.53001555,0.00012868,2]
[346564246,1735091432926,-1826.6196,0.00012869,2]
[346564248,1735091432935,-500.0,0.00012869,2]
[346564250,1735091432944,-203.21,0.0001287,2]
[346564252,1735091432953,-201.48,0.0001287,2]
[346564253,1735091432963,-1448.304,0.0001287,2]
[346564254,1735091432972,-152.99,0.0001287,2]
[346564255,1735091432982,-1674.72279542,0.00012871,2]
[346564256,1735091432991,-1674.72279542,0.00012874,2]
[346564257,1735091433000,-1674.72279542,0.00012878,2]
[346564258,1735091433010,-1674.72279542,0.00012882,2]
[346564259,1735091433019,-1674.72279542,0.00012885,2]
[346564260,1735091433029,-1674.72279542,0.00012889,2]
[346564261,1735091433039,-1674.72279542,0.00012893,2]
[346564262,1735091433048,-1674.72279542,0.00012896,2]
[346564263,1735091433058,-301.75,0.000129,2]
[346564264,1735091433067,-1674.72279542,0.000129,2]
[346564265,1735091433077,-500.0,0.00012966,2]
[346564266,1735091433086,-670.32,0.00012966,2]
[346564267,1735091433095,-500.0,0.00012966,2]
[346564268,1735091433106,-903.92,0.00012966,2]
[346564269,1735091433115,-500.0,0.00012966,2]
[346564270,1735091433125,-1285.43,0.00012966,2]
[346564271,1735091433134,-548.95,0.00012966,2]
[346564272,1735091433144,-500.0,0.00012966,2]
[346564273,1735091433153,-500.0,0.00012966,2]
[346564274,1735091433163,-672.48,0.00012966,2]
[346564275,1735091433173,-1297.46,0.00012966,2]
[346564276,1735091433183,-500.0,0.00012966,2]
[346564277,1735091433193,-975.32,0.00012966,2]
[346564278,1735091433203,-355.16740786,0.00012966,2]
[346564279,1735091433213,-500.0,0.00012966,2]
[346564280,1735091433223,-500.0,0.00012966,2]
[346564281,1735091433232,-500.0,0.00012966,2]
[346564282,1735091433241,-500.0,0.00012966,2]
[346564283,1735091433251,-500.0,0.00012966,2]
[346564284,1735091433261,-500.0,0.00012966,2]
[346564285,1735091433270,-959.14,0.00012966,2]
[346564286,1735091433279,-500.0,0.00012966,2]
[346564287,1735091433290,-500.0,0.00012966,2]
[346564288,1735091433300,-394.92312948,0.00012966,2]
[346564289,1735091433309,-500.0,0.00012966,2]
[346564290,1735091433318,-500.0,0.00012966,2]
[346564291,1735091433328,-500.0,0.00012966,2]
[346564292,1735091433337,-816.1,0.00012966,2]
[346564293,1735091433346,-500.0,0.00012966,2]
[346564294,1735091433357,-529.37135353,0.00012966,2]
[346564295,1735091433366,-895.87,0.00012966,2]
[346564296,1735091433375,-500.0,0.00012966,2]
[346564297,1735091433384,-557.91,0.00012966,2]
[346564298,1735091433394,-942.35,0.00012966,2]
[346564299,1735091433403,-510.13808418,0.00012966,2]
[346564300,1735091433413,-500.0,0.00012966,2]
[346564301,1735091433422,-500.0,0.00012966,2]
[346564302,1735091433431,-1085.07,0.00012966,2]
[346564303,1735091433440,-1179.48,0.00012966,2]
[346564304,1735091433449,-500.0,0.00012966,2]
[346564305,1735091433459,-500.0,0.00012966,2]
[346564306,1735091433468,-576.53,0.00012966,2]
[346564307,1735091433481,-500.0,0.00012966,2]
[346564308,1735091433491,-500.0,0.00012966,2]
[346564309,1735091433500,-500.0,0.00012966,2]
[346564310,1735091433510,-420.07171209,0.00012966,2]
[346564311,1735091433519,-500.0,0.00012966,2]
[346564312,1735091433528,-500.0,0.00012966,2]
[346564313,1735091433538,-500.0,0.00012966,2]
[346564314,1735091433547,-500.0,0.00012966,2]
[346564315,1735091433557,-500.0,0.00012966,2]
[346564316,1735091433567,-500.0,0.00012966,2]
[346564317,1735091433577,-500.0,0.00012966,2]
[346564318,1735091433586,-500.0,0.00012966,2]
[346564319,1735091433596,-1571.98,0.00012966,2]
[346564320,1735091433606,-500.0,0.00012966,2]
[346564321,1735091433615,-647.47,0.00012966,2]
[346564322,1735091433630,-882.05,0.00012966,2]
[346564323,1735091433639,-500.0,0.00012966,2]
[346564324,1735091433648,-500.0,0.00012966,2]
[346564325,1735091433658,-500.0,0.00012966,2]
[346564326,1735091433670,-500.0,0.00012966,2]
[346564327,1735091433679,-3364.4,0.00012966,2]
[346564328,1735091433689,-500.0,0.00012966,2]
[346564329,1735091433699,-500.0,0.00012966,2]
[346564330,1735091433708,-500.0,0.00012966,2]
[346564331,1735091433717,-500.0,0.00012966,2]
[346564332,1735091433727,-500.0,0.00012966,2]
[346564333,1735091433736,-500.0,0.00012966,2]
[346564334,1735091433745,-500.0,0.00012966,2]
[346564335,1735091433755,-3119.23,0.00012966,2]
[346564336,1735091433764,-500.0,0.00012966,2]
[346564337,1735091433773,-500.0,0.00012966,2]
[346564338,1735091433784,-500.0,0.00012966,2]
[346564339,1735091433793,-658.4,0.00012966,2]
[346564340,1735091433802,-2175.6,0.00012966,2]
[346564341,1735091433813,-500.0,0.00012966,2]
[346564342,1735091433822,-500.0,0.00012966,2]
[346564343,1735091433831,-5135.62,0.00012966,2]
[346564344,1735091433840,-500.0,0.00012966,2]
[346564345,1735091433849,-500.0,0.00012966,2]
[346564346,1735091433859,-500.0,0.00012966,2]
[346564347,1735091433868,-1208.47,0.00012966,2]
[346564348,1735091433880,-1082.22,0.00012966,2]
[346564349,1735091433890,-753.98,0.00012966,2]
[346564350,1735091433899,-8629.09,0.00012966,2]
[346564351,1735091433908,-500.0,0.00012966,2]
[346564352,1735091433917,-8128.67,0.00012966,2]
[346564353,1735091433927,-500.0,0.00012966,2]
[346564354,1735091433936,-500.0,0.00012966,2]
[346564355,1735091433945,-765.51,0.00012966,2]
[346564356,1735091433955,-508.74187527,0.00012966,2]
[346564357,1735091433964,-4603.59,0.00012966,2]
[346564358,1735091433974,-500.0,0.00012966,2]
[346564359,1735091433983,-639.09,0.00012966,2]
[346564360,1735091433993,-5402.42,0.00012966,2]
[346564361,1735091434002,-500.0,0.00012966,2]
[346564362,1735091434012,-500.0,0.00012966,2]
[346564363,1735091434022,-1690.23,0.00012966,2]
[346564364,1735091434032,-500.0,0.00012966,2]
[346564365,1735091434041,-500.0,0.00012966,2]
[346564366,1735091434051,-7846.83,0.00012966,2]
[346564367,1735091434060,-503.19,0.00012966,2]
[346564368,1735091434070,-15385.48,0.00012966,2]
[346564369,1735091434079,-500.0,0.00012966,2]
[346564370,1735091434089,-500.0,0.00012966,2]
[346564371,1735091434100,-500.0,0.00012966,2]
[346564372,1735091434110,-5791.95,0.00012966,2]
[346564373,1735091434123,-605.69,0.00012966,2]